fUSD/lending_fUSD_20260515
["ID","MTS","AMOUNT","RATE_DAILY","PERIOD"]
[422332483,1778836233000,-255.0,0.00014716,2]
[422332494,1778836233000,-224.81937044,0.00014748,2]
[422332488,1778836233000,-151.0,0.00014748,2]
[422332496,1778836233000,-151.0,0.00014748,2]
[422332491,1778836233000,-500.0,0.00014748,2]
[422332486,1778836233000,-646.65982734,0.00014748,2]
[422332495,1778836233000,-174.61919141,0.00014748,2]
[422332487,1778836233000,-200.0,0.00014748,2]
[422332479,1778836233000,-648.98734074,0.00014688,2]
[422332492,1778836233000,-151.0,0.00014748,2]
[422332506,1778836233000,-151.0,0.00014748,2]
[422332493,1778836233000,-151.0,0.00014748,2]
[422332497,1778836233000,-500.0,0.00014748,2]
[422332498,1778836233000,-151.0,0.00014748,2]
[422332504,1778836233000,-187.78006525,0.00014748,2]
[422332505,1778836233000,-151.0,0.00014748,2]
[422332500,1778836233000,-151.0,0.00014748,2]
[422332508,1778836233000,-151.0,0.00014748,2]
[422332502,1778836233000,-151.0,0.00014748,2]
[422332503,1778836233000,-151.0,0.00014748,2]
[422332499,1778836233000,-151.0,0.00014748,2]
[422332507,1778836233000,-1865.36488657,0.00014748,2]
[422332481,1778836233000,-150.0,0.00014701,2]
[422332489,1778836233000,-151.0,0.00014748,2]
[422332476,1778836233000,-150.0,0.00014629,2]
[422332453,1778836233000,-1042.70123455,0.00014334,2]
[422332482,1778836233000,-2520.86806735,0.00014715,2]
[422332501,1778836233000,-215.31159594,0.00014748,2]
[422332454,1778836233000,-2000.0,0.00014339,2]
[422332455,1778836233000,-2520.86806735,0.00014344,2]
[422332458,1778836233000,-166.66,0.00014384,2]
[422332456,1778836233000,-150.0,0.00014344,2]
[422332460,1778836233000,-150.0,0.00014387,2]
[422332457,1778836233000,-689.61332266,0.00014376,2]
[422332459,1778836233000,-150.0,0.00014387,2]
[422332461,1778836233000,-150.0,0.00014415,2]
[422332465,1778836233000,-689.61332262,0.00014481,2]
[422332463,1778836233000,-1042.70123455,0.00014476,2]
[422332464,1778836233000,-648.98734074,0.00014476,2]
[422332477,1778836233000,-150.0,0.00014687,2]
[422332467,1778836233000,-150.0,0.00014487,2]
[422332472,1778836233000,-689.61332262,0.00014586,2]
[422332462,1778836233000,-14114.66375446,0.0001447,2]
[422332466,1778836233000,-150.0,0.00014487,2]
[422332471,1778836233000,-150.0,0.00014558,2]
[422332469,1778836233000,-500.0,0.00014523,2]
[422332470,1778836233000,-2520.86806735,0.00014529,2]
[422332473,1778836233000,-150.0,0.00014612,2]
[422332474,1778836233000,-14114.66375446,0.00014613,2]
[422332484,1778836233000,-578.20924308,0.00014748,2]
[422332475,1778836233000,-1042.70123455,0.00014617,2]
[422332478,1778836233000,-150.0,0.00014687,2]
[422332480,1778836233000,-689.61332262,0.0001469,2]
[422332468,1778836233000,-150.0,0.00014487,2]
[422332510,1778836233000,-152.0,0.00014748,2]
[422332485,1778836233000,-151.0,0.00014748,2]
[422332509,1778836233000,-151.0,0.00014748,2]
[422332542,1778836233000,-25000.0,0.000149,3]
[422332554,1778836233000,-223.51992335,0.00014986,2]
[422332543,1778836233000,-14114.66375446,0.000149,2]
[422332544,1778836233000,-4195.62463747,0.000149,2]
[422332545,1778836233000,-505.39235429,0.000149,2]
[422332547,1778836233000,-689.61332262,0.000149,2]
[422332546,1778836233000,-2520.86806735,0.000149,2]
[422332552,1778836233000,-188.55123638,0.0001496,2]
[422332549,1778836233000,-1680.0,0.0001491,2]
[422332548,1778836233000,-1114.07309122,0.000149,2]
[422332551,1778836233000,-150.0,0.00014915,2]
[422332550,1778836233000,-151.0,0.00014913,2]
[422332555,1778836233000,-262.25245997,0.00014986,2]
[422332558,1778836233000,-150.0,0.00014986,2]
[422332557,1778836233000,-150.0,0.00014986,2]
[422332559,1778836233000,-281.32134049,0.00014986,2]
[422332563,1778836233000,-472.60798522,0.0001499,2]
[422332562,1778836233000,-472.60798522,0.0001499,2]
[422332560,1778836233000,-150.0,0.00014986,2]
[422332561,1778836233000,-197.7782066,0.00014986,2]
[422332564,1778836233000,-500.0,0.00014999,2]
[422332556,1778836233000,-153.59814659,0.00014986,2]
[422332566,1778836233000,-500.0,0.00014999,2]
[422332565,1778836233000,-500.0,0.00014999,2]
[422332520,1778836233000,-151.0,0.00014748,2]
[422332537,1778836233000,-672.78,0.00014891,2]
[422332540,1778836233000,-1042.70123455,0.000149,2]
[422332553,1778836233000,-151.0,0.00014968,2]
[422332538,1778836233000,-1680.0,0.00014896,2]
[422332512,1778836233000,-236.30505236,0.00014748,2]
[422332511,1778836233000,-151.0,0.00014748,2]
[422332514,1778836233000,-151.0,0.00014748,2]
[422332513,1778836233000,-151.0,0.00014748,2]
[422332515,1778836233000,-151.0,0.00014748,2]
[422332518,1778836233000,-151.0,0.00014748,2]
[422332516,1778836233000,-151.0,0.00014748,2]
[422332539,1778836233000,-1111.6430771,0.000149,2]
[422332519,1778836233000,-151.0,0.00014748,2]
[422332522,1778836233000,-1000.0,0.00014748,2]
[422332521,1778836233000,-151.0,0.00014748,2]
[422332523,1778836233000,-1000.0,0.00014748,2]
[422332524,1778836233000,-151.0,0.00014748,2]
[422332517,1778836233000,-151.0,0.00014748,2]
[422332528,1778836233000,-14114.66375446,0.00014757,2]
[422332527,1778836233000,-151.0,0.00014748,2]
[422332529,1778836233000,-1042.70123455,0.00014759,2]
[422332526,1778836233000,-348.69445272,0.00014748,2]
[422332530,1778836233000,-150.0,0.00014772,2]
[422332531,1778836233000,-689.61332262,0.00014795,2]
[422332532,1778836233000,-500.0,0.00014797,2]
[422332541,1778836233000,-648.98734074,0.000149,2]
[422332533,1778836233000,-151.0,0.00014803,2]
[422332534,1778836233000,-150.0,0.00014844,2]
[422332535,1778836233000,-500.0,0.00014848,2]
[422332525,1778836233000,-1000.0,0.00014748,2]
[422332536,1778836233000,-151.0,0.00014858,2]
[422332574,1778836234000,-500.0,0.00014999,2]
[422332589,1778836234000,-300.0,0.00014999,2]
[422332575,1778836234000,-415.54613296,0.00014999,2]
[422332572,1778836234000,-273.92452133,0.00014999,2]
[422332571,1778836234000,-201.36267394,0.00014999,2]
[422332576,1778836234000,-500.0,0.00014999,2]
[422332570,1778836234000,-1096.81108638,0.00014999,5]
[422332568,1778836234000,-672.78,0.00014999,2]
[422332569,1778836234000,-672.78,0.00014999,2]
[422332567,1778836234000,-672.78,0.00014999,2]
[422332580,1778836234000,-252.42303883,0.00014999,2]
[422332573,1778836234000,-500.0,0.00014999,2]
[422332579,1778836234000,-500.0,0.00014999,2]
[422332577,1778836234000,-500.0,0.00014999,2]
[422332581,1778836234000,-191.74716493,0.00014999,2]
[422332593,1778836234000,-131515.1895598,0.00015,2]
[422332592,1778836234000,-202482.70426681,0.00015,2]
[422332594,1778836234000,-819.56436745,0.00015,2]
[422332591,1778836234000,-32984.45328314,0.00015,2]
[422332587,1778836234000,-666.0,0.00014999,2]
[422332590,1778836234000,-300.0,0.00014999,2]
[422332588,1778836234000,-666.0,0.00014999,2]
[422332585,1778836234000,-666.0,0.00014999,2]
[422332584,1778836234000,-300.0,0.00014999,2]
[422332582,1778836234000,-150.0,0.00014999,2]
[422332586,1778836234000,-300.0,0.00014999,2]
[422332583,1778836234000,-666.0,0.00014999,2]
[422332578,1778836234000,-500.0,0.00014999,2]
[422332596,1778836235000,-250.0,0.00015,2]
[422332595,1778836235000,-570.80787515,0.00015,2]
[422332607,1778836237000,-8056045.13928012,0.00015,2]
[422332605,1778836237000,-150.0,0.00014452,2]
[422332608,1778836237000,-1472.71569,0.00015,2]
[422332610,1778836237000,-329.16,0.00015,2]
[422332609,1778836237000,-559.53,0.00015,2]
[422332606,1778836237000,-291.85352659,0.00014452,2]
[422332651,1778836239000,-911079.05700365,0.00015,2]
[422332650,1778836239000,-240.00749327,0.00014452,2]
[422332649,1778836239000,-150.0,0.00014452,2]
[422332647,1778836239000,-150.0,0.00014452,2]
[422332646,1778836239000,-150.0,0.00014452,2]
[422332648,1778836239000,-150.0,0.00014452,2]
[422332645,1778836239000,-150.0,0.00014452,2]
[422332652,1778836240000,-560.25178003,0.00015,2]
[422332672,1778836242000,-389903.74936856,0.00015,2]
[422332671,1778836242000,-673.3,0.00015,2]
[422332673,1778836245000,-505.0,0.00015,2]
[422332675,1778836245000,-1893.12,0.00015,2]
[422332674,1778836245000,-572.01969778,0.00015,2]
[422332677,1778836245000,-7560.78717971,0.00015,2]
[422332678,1778836245000,-8057.74999999,0.00015,2]
[422332680,1778836245000,-8403.51793068,0.00015,2]
[422332676,1778836245000,-605.14865308,0.00015,2]
[422332679,1778836245000,152.0,0.0001347,7]
[422332681,1778836245000,-3582.04783156,0.00015,2]
[422332690,1778836246000,152.0,0.0001347,7]
[422332693,1778836459000,-7176.49545446,0.00013402,2]
[422332694,1778836459000,-194.84482637,0.00013402,2]
[422332691,1778836459000,-500.0,0.00012722,2]
[422332696,1778836459000,-150.0,0.00013491,2]
[422332697,1778836459000,-51456.16971917,0.00013492,2]
[422332695,1778836459000,-222.49,0.00013472,2]
[422332692,1778836459000,-300.0,0.00013401,2]
[422332698,1778836546000,152.0,0.00013474,7]
[422332699,1778836887000,638.9267592,0.0001364,21]
[422332700,1778836888000,160.55621558,0.0001364,21]
[422332701,1778837030000,2314.3516,0.00030136,120]
[422332702,1778837066000,1201.7232547,0.00013642,21]
[422332703,1778837067000,160.55621559,0.00013642,21]
[422332705,1778837256000,185.46234308,0.00030136,120]
[422332706,1778837261000,168.44778475,0.00026826,120]
[422332707,1778837262000,388.33051974,0.00027483,120]
[422332708,1778837263000,388.33051974,0.00027557,120]
[422332722,1778837431000,-98563.08,0.000127,2]
[422332728,1778837431000,-2903.91,0.0001339,2]
[422332723,1778837431000,-293.84,0.00012772,2]
[422332721,1778837431000,-150.0,0.00012699,2]
[422332720,1778837431000,-1200.0,0.00012699,2]
[422332716,1778837431000,-1200.0,0.00012699,2]
[422332714,1778837431000,-161.45,0.00012633,2]
[422332717,1778837431000,-300.0,0.00012699,2]
[422332715,1778837431000,-658.52873662,0.00012699,2]
[422332713,1778837431000,-195.78,0.00012628,2]
[422332719,1778837431000,-300.0,0.00012699,2]
[422332712,1778837431000,-150.0,0.00012604,2]
[422332711,1778837431000,-71168.1845,0.000126,2]
[422332710,1778837431000,-156.76,0.00012532,2]
[422332726,1778837431000,-2129.85,0.00013386,2]
[422332718,1778837431000,-300.0,0.00012699,2]
[422332731,1778837431000,-556.5095,0.00013392,2]
[422332748,1778837431000,-2989.2151998,0.00013502,2]
[422332729,1778837431000,-150.99,0.0001339,2]
[422332725,1778837431000,-187.0,0.00013386,2]
[422332745,1778837431000,-584.74894791,0.00013502,2]
[422332747,1778837431000,-1450.0,0.00013502,2]
[422332740,1778837431000,-150.0,0.00013501,2]
[422332738,1778837431000,-1000.0,0.00013491,2]
[422332741,1778837431000,-2000.0,0.00013502,2]
[422332742,1778837431000,-271471.34243499,0.00013502,2]
[422332737,1778837431000,-163.38,0.00013489,2]
[422332739,1778837431000,-500.0,0.00013501,2]
[422332736,1778837431000,-171.23444437,0.00013488,2]
[422332735,1778837431000,-200.0,0.00013488,2]
[422332733,1778837431000,-523.30553848,0.00013468,2]
[422332732,1778837431000,-6458.84590896,0.00013401,2]
[422332724,1778837431000,-2000.0,0.00013326,2]
[422332727,1778837431000,-411.4781,0.0001339,2]
[422332730,1778837431000,-1441.35,0.0001339,2]
[422332734,1778837431000,-1946.47,0.00013479,2]
[422332749,1778837432000,-851.23643277,0.00013502,2]
[422332830,1778837438000,-2038.01,0.00013699,2]
[422332815,1778837438000,-554.84,0.00013698,2]
[422332827,1778837438000,-200.0,0.00013699,2]
[422332826,1778837438000,-509.26577516,0.00013698,2]
[422332820,1778837438000,-584.96,0.00013698,2]
[422332825,1778837438000,-584.96,0.00013698,2]
[422332823,1778837438000,-584.96,0.00013698,2]
[422332831,1778837438000,-166.66,0.00013699,2]
[422332818,1778837438000,-584.96,0.00013698,2]
[422332836,1778837438000,-801.8,0.000137,2]
[422332856,1778837438000,-500.0,0.00013701,2]
[422332851,1778837438000,-500.0,0.00013701,2]
[422332849,1778837438000,-500.0,0.00013701,2]
[422332847,1778837438000,-500.0,0.00013701,2]
[422332838,1778837438000,-549.0418679,0.000137,2]
[422332854,1778837438000,-500.0,0.00013701,2]
[422332840,1778837438000,-500.0,0.00013701,2]
[422332845,1778837438000,-500.0,0.00013701,2]
[422332809,1778837438000,-500.0,0.00013698,2]
[422332858,1778837438000,-500.0,0.00013701,2]
[422332834,1778837438000,-163.19,0.000137,2]
[422332805,1778837438000,-500.0,0.00013698,2]
[422332769,1778837438000,-500.0,0.00013698,2]
[422332794,1778837438000,-500.0,0.00013698,2]
[422332754,1778837438000,-347250.63248453,0.00013502,2]
[422332756,1778837438000,-9028.15,0.00013602,2]
[422332755,1778837438000,-6458.84590893,0.00013568,2]
[422332757,1778837438000,-999.99,0.00013602,2]
[422332759,1778837438000,-15709.27,0.00013602,2]
[422332761,1778837438000,-2170.56,0.00013608,2]
[422332763,1778837438000,-345.42,0.00013608,2]
[422332765,1778837438000,-9999.99,0.00013608,2]
[422332778,1778837438000,-500.0,0.00013698,2]
[422332802,1778837438000,-500.0,0.00013698,2]
[422332774,1778837438000,-542.56640835,0.00013698,2]
[422332767,1778837438000,-208.38824723,0.00013613,2]
[422332780,1778837438000,-500.0,0.00013698,2]
[422332860,1778837438000,-500.0,0.00013701,2]
[422332776,1778837438000,-500.0,0.00013698,2]
[422332782,1778837438000,-500.0,0.00013698,2]
[422332797,1778837438000,-500.0,0.00013698,2]
[422332792,1778837438000,-500.0,0.00013698,2]
[422332790,1778837438000,-505.50097699,0.00013698,2]
[422332799,1778837438000,-500.0,0.00013698,2]
[422332771,1778837438000,-500.0,0.00013698,2]
[422332843,1778837438000,-500.0,0.00013701,2]
[422332811,1778837438000,-500.0,0.00013698,2]
[422332865,1778837438000,-801.8,0.00013701,2]
[422332931,1778837438000,-150.0,0.00014452,2]
[422332933,1778837438000,-150.0,0.00014452,2]
[422332918,1778837438000,-432.84,0.00014158,2]
[422332935,1778837438000,-150.0,0.00014452,2]
[422332920,1778837438000,-6458.84590893,0.00014234,2]
[422332924,1778837438000,-166.66,0.00014384,2]
[422332922,1778837438000,-166.66,0.00014247,2]
[422332938,1778837438000,-240.00749327,0.00014452,2]
[422332940,1778837438000,-6458.84590893,0.00014567,2]
[422332951,1778837438000,-200.0,0.0001488,2]
[422332955,1778837438000,-188.004,0.00014896,2]
[422332946,1778837438000,-29964.16918207,0.0001485,2]
[422332942,1778837438000,-6458.84590893,0.00014733,2]
[422332949,1778837438000,-500.0,0.00014856,2]
[422332958,1778837438000,-801.8,0.00014899,2]
[422332944,1778837438000,-161.45,0.00014739,2]
[422332960,1778837438000,-6965.5908,0.000149,2]
[422332962,1778837438000,-512.13786049,0.000149,2]
[422332964,1778837438000,-153.79777465,0.000149,2]
[422332966,1778837438000,-153.53198692,0.000149,2]
[422332862,1778837438000,-366.5739184,0.00013701,2]
[422332929,1778837438000,-150.0,0.00014452,2]
[422332926,1778837438000,-6458.84590893,0.000144,2]
[422332953,1778837438000,-657.722,0.00014896,2]
[422332890,1778837438000,-450.11154394,0.00013785,2]
[422332876,1778837438000,-801.8,0.00013701,2]
[422332915,1778837438000,-166.66,0.0001411,2]
[422332878,1778837438000,-6458.84590893,0.00013734,2]
[422332880,1778837438000,-500.0,0.00013775,2]
[422332867,1778837438000,-801.8,0.00013701,2]
[422332869,1778837438000,-801.8,0.00013701,2]
[422332871,1778837438000,-801.8,0.00013701,2]
[422332882,1778837438000,-2500.0,0.00013785,2]
[422332873,1778837438000,-801.8,0.00013701,2]
[422332886,1778837438000,-1905.5366806,0.00013785,2]
[422332911,1778837438000,-150.82433024,0.00014049,2]
[422332884,1778837438000,-1591.06853243,0.00013785,2]
[422332896,1778837438000,-195.78,0.00013891,2]
[422332900,1778837438000,-1680.0,0.00013931,2]
[422332892,1778837438000,-255.0,0.00013803,2]
[422332898,1778837438000,-6458.84590893,0.00013901,2]
[422332909,1778837438000,-250.0,0.00014,2]
[422332913,1778837438000,-6458.84590893,0.00014067,2]
[422332902,1778837438000,-420.0,0.00013931,2]
[422332907,1778837438000,-166.66,0.00013973,2]
[422332904,1778837438000,-1680.0,0.00013969,2]
[422332894,1778837438000,-166.66,0.00013836,2]
[422333049,1778837439000,-584.96,0.00014999,2]
[422333045,1778837439000,-584.96,0.00014999,2]
[422333040,1778837439000,-584.96,0.00014999,2]
[422333032,1778837439000,-802.03302447,0.00014999,2]
[422333051,1778837439000,-584.96,0.00014999,2]
[422333036,1778837439000,-584.96,0.00014999,2]
[422333038,1778837439000,-584.96,0.00014999,2]
[422333034,1778837439000,-511.13281716,0.00014999,5]
[422333019,1778837439000,-801.8,0.00014999,2]
[422333053,1778837439000,-584.96,0.00014999,2]
[422333043,1778837439000,-584.96,0.00014999,2]
[422333047,1778837439000,-584.96,0.00014999,2]
[422333076,1778837439000,-585.12553444,0.00014999,2]
[422333072,1778837439000,-584.96,0.00014999,2]
[422333059,1778837439000,-584.96,0.00014999,2]
[422333057,1778837439000,-584.96,0.00014999,2]
[422333061,1778837439000,-584.96,0.00014999,2]
[422333066,1778837439000,-584.96,0.00014999,2]
[422333063,1778837439000,-584.96,0.00014999,2]
[422333068,1778837439000,-584.96,0.00014999,2]
[422333074,1778837439000,-584.96,0.00014999,2]
[422333069,1778837439000,-584.96,0.00014999,2]
[422333078,1778837439000,-300.0,0.00014999,2]
[422333021,1778837439000,-801.8,0.00014999,2]
[422333096,1778837439000,-3144.531642,0.00015,14]
[422333055,1778837439000,-584.96,0.00014999,2]
[422333030,1778837439000,-801.8,0.00014999,2]
[422332982,1778837439000,-2000.0,0.00014992,2]
[422333018,1778837439000,-801.8,0.00014999,2]
[422333098,1778837439000,-8082.43942848,0.00015,2]
[422332968,1778837439000,-4699.53224211,0.000149,2]
[422332975,1778837439000,-827.3200793,0.0001499,2]
[422332977,1778837439000,-121897.1672446,0.0001499,2]
[422332980,1778837439000,-211.03404089,0.0001499,2]
[422332971,1778837439000,-6458.84590893,0.000149,2]
[422332987,1778837439000,-603.34873986,0.00014998,2]
[422332973,1778837439000,-194.9294404,0.000149,2]
[422332985,1778837439000,-151.0,0.00014997,2]
[422332992,1778837439000,-500.0,0.00014999,2]
[422332989,1778837439000,-500.0,0.00014999,2]
[422332994,1778837439000,-500.0,0.00014999,2]
[422332998,1778837439000,-500.0,0.00014999,2]
[422333005,1778837439000,-801.8,0.00014999,2]
[422333000,1778837439000,-234.66857943,0.00014999,2]
[422332996,1778837439000,-500.0,0.00014999,2]
[422333003,1778837439000,-801.8,0.00014999,2]
[422333008,1778837439000,-801.8,0.00014999,2]
[422333009,1778837439000,-801.8,0.00014999,2]
[422333011,1778837439000,-801.8,0.00014999,2]
[422333014,1778837439000,-801.8,0.00014999,2]
[422333017,1778837439000,-801.8,0.00014999,2]
[422333023,1778837439000,-801.8,0.00014999,2]
[422333027,1778837439000,-801.8,0.00014999,2]
[422333016,1778837439000,-801.8,0.00014999,2]
[422333026,1778837439000,-801.8,0.00014999,2]
[422333079,1778837439000,-666.0,0.00014999,2]
[422333144,1778837439000,-500.0,0.00015,2]
[422333102,1778837439000,-2000.0,0.00015,2]
[422333147,1778837439000,-500.0,0.00015,2]
[422333155,1778837439000,-500.0,0.00015,2]
[422333157,1778837439000,-500.0,0.00015,2]
[422333159,1778837439000,-500.0,0.00015,2]
[422333161,1778837439000,-500.0,0.00015,2]
[422333170,1778837439000,-500.0,0.00015,2]
[422333164,1778837439000,-500.0,0.00015,2]
[422333165,1778837439000,-500.0,0.00015,2]
[422333168,1778837439000,-367.879179,0.00015,2]
[422333178,1778837439000,-500.0,0.00015,2]
[422333180,1778837439000,-367.879179,0.00015,2]
[422333172,1778837439000,-500.0,0.00015,2]
[422333138,1778837439000,-500.0,0.00015,2]
[422333174,1778837439000,-500.0,0.00015,2]
[422333182,1778837439000,-500.0,0.00015,2]
[422333185,1778837439000,-500.0,0.00015,2]
[422333193,1778837439000,-367.879179,0.00015,2]
[422333197,1778837439000,-329.040119,0.00015,2]
[422333195,1778837439000,-500.0,0.00015,2]
[422333201,1778837439000,-500.0,0.00015,2]
[422333188,1778837439000,-500.0,0.00015,2]
[422333199,1778837439000,-500.0,0.00015,2]
[422333187,1778837439000,-500.0,0.00015,2]
[422333191,1778837439000,-500.0,0.00015,2]
[422333203,1778837439000,-500.0,0.00015,2]
[422333083,1778837439000,-300.0,0.00014999,2]
[422333176,1778837439000,-500.0,0.00015,2]
[422333136,1778837439000,-500.0,0.00015,2]
[422333206,1778837439000,-500.0,0.00015,2]
[422333140,1778837439000,-500.0,0.00015,2]
[422333104,1778837439000,-200.0,0.00015,2]
[422333092,1778837439000,-3039190.23507202,0.00015,2]
[422333081,1778837439000,-300.0,0.00014999,2]
[422333088,1778837439000,-300.0,0.00014999,2]
[422333094,1778837439000,-2076.06689717,0.00015,2]
[422333085,1778837439000,-300.0,0.00014999,2]
[422333100,1778837439000,-3555912.9457306,0.00015,2]
[422333108,1778837439000,-200.0,0.00015,2]
[422333106,1778837439000,-151.0,0.00015,2]
[422333110,1778837439000,-473.44,0.00015,2]
[422333113,1778837439000,-151.0,0.00015,2]
[422333115,1778837439000,-151.0,0.00015,2]
[422333089,1778837439000,-300.0,0.00014999,2]
[422333121,1778837439000,-500.0,0.00015,2]
[422333134,1778837439000,-500.0,0.00015,2]
[422333131,1778837439000,-500.0,0.00015,2]
[422333153,1778837439000,-500.0,0.00015,2]
[422333123,1778837439000,-500.0,0.00015,2]
[422333151,1778837439000,-500.0,0.00015,2]
[422333149,1778837439000,-500.0,0.00015,2]
[422333129,1778837439000,-500.0,0.00015,2]
[422333127,1778837439000,-500.0,0.00015,2]
[422333125,1778837439000,-500.0,0.00015,2]
[422333119,1778837439000,-500.0,0.00015,2]
[422333117,1778837439000,-500.0,0.00015,2]
[422333142,1778837439000,-500.0,0.00015,2]
[422333287,1778837440000,-500.0,0.00015,2]
[422333295,1778837440000,-500.0,0.00015,2]
[422333293,1778837440000,-500.0,0.00015,2]
[422333283,1778837440000,-500.0,0.00015,2]
[422333272,1778837440000,-500.0,0.00015,2]
[422333268,1778837440000,-500.0,0.00015,2]
[422333279,1778837440000,-500.0,0.00015,2]
[422333281,1778837440000,-500.0,0.00015,2]
[422333261,1778837440000,-500.0,0.00015,2]
[422333299,1778837440000,-500.0,0.00015,2]
[422333266,1778837440000,-500.0,0.00015,2]
[422333285,1778837440000,-500.0,0.00015,2]
[422333307,1778837440000,-500.0,0.00015,2]
[422333297,1778837440000,-500.0,0.00015,2]
[422333291,1778837440000,-500.0,0.00015,2]
[422333301,1778837440000,-500.0,0.00015,2]
[422333303,1778837440000,-500.0,0.00015,2]
[422333305,1778837440000,-500.0,0.00015,2]
[422333309,1778837440000,-500.0,0.00015,2]
[422333311,1778837440000,-500.0,0.00015,2]
[422333319,1778837440000,-160.344429,0.00015,2]
[422333321,1778837440000,-151.0,0.00015,2]
[422333313,1778837440000,-500.0,0.00015,2]
[422333325,1778837440000,-151.0,0.00015,2]
[422333275,1778837440000,-500.0,0.00015,2]
[422333289,1778837440000,-500.0,0.00015,2]
[422333263,1778837440000,-500.0,0.00015,2]
[422333235,1778837440000,-500.0,0.00015,2]
[422333270,1778837440000,-500.0,0.00015,2]
[422333210,1778837440000,-367.879179,0.00015,2]
[422333212,1778837440000,-500.0,0.00015,2]
[422333208,1778837440000,-500.0,0.00015,2]
[422333218,1778837440000,-500.0,0.00015,2]
[422333214,1778837440000,-329.040119,0.00015,2]
[422333216,1778837440000,-500.0,0.00015,2]
[422333226,1778837440000,-500.0,0.00015,2]
[422333220,1778837440000,-329.040119,0.00015,2]
[422333225,1778837440000,-500.0,0.00015,2]
[422333222,1778837440000,-329.040119,0.00015,2]
[422333228,1778837440000,-500.0,0.00015,2]
[422333230,1778837440000,-500.0,0.00015,2]
[422333232,1778837440000,-500.0,0.00015,2]
[422333244,1778837440000,-500.0,0.00015,2]
[422333316,1778837440000,-500.0,0.00015,2]
[422333250,1778837440000,-500.0,0.00015,2]
[422333248,1778837440000,-500.0,0.00015,2]
[422333246,1778837440000,-500.0,0.00015,2]
[422333237,1778837440000,-500.0,0.00015,2]
[422333241,1778837440000,-500.0,0.00015,2]
[422333255,1778837440000,-500.0,0.00015,2]
[422333257,1778837440000,-500.0,0.00015,2]
[422333239,1778837440000,-500.0,0.00015,2]
[422333253,1778837440000,-500.0,0.00015,2]
[422333259,1778837440000,-500.0,0.00015,2]
[422333277,1778837440000,-500.0,0.00015,2]
[422333323,1778837440000,-151.0,0.00015,2]
[422333418,1778837440000,-2819.96836333,0.00015964,2]
[422333329,1778837440000,-151.0,0.00015,2]
[422333403,1778837440000,-188.58613926,0.000159,2]
[422333396,1778837440000,-1004.0,0.00015692,5]
[422333383,1778837440000,-200.0,0.00015455,2]
[422333394,1778837440000,-946.0,0.00015692,5]
[422333398,1778837440000,-1000.0,0.00015746,2]
[422333388,1778837440000,-1000.0,0.000156,2]
[422333405,1778837440000,-150.38032802,0.000159,2]
[422333423,1778837440000,-3622.93,0.00016116,2]
[422333445,1778837440000,-467.5,0.00016377,2]
[422333416,1778837440000,-200.0,0.000159,2]